bitfinex/quotes_BTCUSD_20250808
["timestamp","ask_amount","ask_price","bid_price","bid_amount"]
[1754685599040,0.33445492,116710.0,116700.0,0.91623062]
[1754685599466,0.33445492,116710.0,116700.0,0.74485102]
[1754685599743,0.38689992,116710.0,116700.0,0.74485102]
[1754685600120,0.33140492,116710.0,116700.0,0.91623062]
[1754685602420,0.33140492,116710.0,116700.0,0.5459506]
[1754685602791,0.33140492,116710.0,116700.0,0.91623062]
[1754685605421,0.02724,116710.0,116700.0,1.28862064]
[1754685605633,0.00224,116710.0,116700.0,1.66200066]
[1754685605857,0.13296,116710.0,116700.0,1.66200066]
[1754685606080,0.00224,116710.0,116700.0,1.74886277]
[1754685606343,0.13296,116710.0,116700.0,1.74886277]
[1754685606558,0.13296,116710.0,116700.0,1.37858275]
[1754685606793,0.00224,116710.0,116700.0,1.37858275]
[1754685607060,0.13296,116710.0,116700.0,1.74886277]
[1754685608504,0.13296,116710.0,116700.0,1.37858275]
[1754685608911,0.13296,116710.0,116700.0,1.74886277]
[1754685609119,0.13296,116710.0,116700.0,1.37858275]
[1754685609739,0.13296,116710.0,116700.0,0.63802271]
[1754685609974,0.13296,116710.0,116700.0,1.37858275]
[1754685627473,0.13296,116710.0,116700.0,0.63802271]
[1754685627674,0.13296,116710.0,116700.0,1.37858275]
[1754685632746,0.13296,116710.0,116700.0,0.63802271]
[1754685633055,0.13296,116710.0,116700.0,1.37858275]
[1754685648240,0.13296,116710.0,116700.0,0.63802271]
[1754685648473,0.13296,116710.0,116700.0,1.37858275]
[1754685650533,0.13296,116710.0,116700.0,1.48633466]
[1754685651426,0.00224,116710.0,116700.0,1.48633466]
[1754685651647,0.13284,116710.0,116700.0,1.48633466]
[1754685666067,0.13284,116710.0,116700.0,1.14633466]
[1754685666523,0.1328,116710.0,116700.0,1.14633466]
[1754685670893,0.00224,116710.0,116700.0,1.51661468]
[1754685671103,0.1328,116710.0,116700.0,1.14633466]
[1754685673939,0.1328,116710.0,116700.0,0.40577462]
[1754685674350,0.1328,116710.0,116700.0,1.14633466]
[1754685675184,0.1328,116710.0,116700.0,0.97495506]
[1754685676535,0.00224,116710.0,116700.0,0.97495506]
[1754685676739,0.1328,116710.0,116700.0,0.97495506]
[1754685678866,0.1328,116710.0,116700.0,1.24075506]
[1754685680455,0.00224,116710.0,116700.0,1.24075506]
[1754685680669,0.1328,116710.0,116700.0,1.24075506]
[1754685688475,0.1328,116710.0,116700.0,1.58075506]
[1754685689659,0.00224,116710.0,116700.0,1.58075506]
[1754685689865,0.1328,116710.0,116700.0,1.95103508]
[1754685690817,0.1328,116710.0,116700.0,1.68523508]
[1754685691728,0.00224,116710.0,116700.0,1.68523508]
[1754685692029,0.00224,116710.0,116700.0,2.08159508]
[1754685692445,0.00224,116710.0,116700.0,1.97384317]
[1754685692797,0.00024,116710.0,116700.0,1.97384317]
[1754685694281,0.00024,116710.0,116700.0,1.97484317]
[1754685694477,0.00024,116710.0,116700.0,1.97384317]
[1754685694927,0.00024,116710.0,116700.0,1.97484317]
[1754685703110,0.00024,116710.0,116700.0,3.10313225]
[1754685703722,0.00024,116710.0,116700.0,1.99229219]
[1754685703961,0.00024,116710.0,116700.0,2.14625423]
[1754685706700,0.00024,116710.0,116700.0,3.25709429]
[1754685712401,0.00024,116710.0,116700.0,3.40600039]
[1754685712942,0.00024,116710.0,116700.0,1.18432027]
[1754685713145,0.00024,116710.0,116700.0,3.40600039]
[1754685715964,0.00024,116710.0,116700.0,5.53233939]
[1754685718152,0.00024,116710.0,116700.0,5.53133939]
[1754685718374,0.00024,116710.0,116700.0,5.53233939]
[1754685718574,0.00024,116710.0,116700.0,5.54083939]
[1754685718782,0.00024,116710.0,116700.0,5.53983939]
[1754685718982,0.00024,116710.0,116700.0,5.54083939]
[1754685719590,0.00024,116710.0,116700.0,5.54183939]
[1754685720696,0.00024,116710.0,116700.0,5.38787735]
[1754685723438,0.0002,116720.0,116710.0,1.73384908]
[1754685723592,0.0002,116720.0,116710.0,2.10674754]
[1754685723794,0.0002,116720.0,116710.0,2.10996754]
[1754685724196,2.253e-05,116720.0,116710.0,2.10996754]
[1754685726328,2.253e-05,116720.0,116710.0,2.12766754]
[1754685734163,0.02493648,116730.0,116710.0,2.12766754]
[1754685734343,0.02493648,116730.0,116720.0,1.33032404]
[1754685734576,0.01948,116730.0,116720.0,1.59374217]
[1754685735304,0.01948,116730.0,116720.0,1.61684217]
[1754685735505,0.02048,116730.0,116720.0,1.61684217]
[1754685736490,0.02148,116730.0,116720.0,1.61684217]
[1754685738107,0.02148,116730.0,116720.0,1.61897217]
[1754685738341,0.02148,116730.0,116720.0,1.62219217]
[1754685738555,0.0195,116730.0,116720.0,1.96219217]
[1754685739513,0.0195,116730.0,116720.0,2.11561852]
[1754685742589,0.0185,116730.0,116720.0,2.11561852]
[1754685742783,0.0175,116730.0,116720.0,2.11561852]
[1754685743903,0.0175,116730.0,116720.0,3.2439076]
[1754685744075,0.00721483,116730.0,116720.0,6.0961157]
[1754685744846,0.00721483,116730.0,116720.0,5.8981197]
[1754685747497,0.00721483,116730.0,116720.0,5.8991197]
[1754685748228,0.00721483,116730.0,116720.0,5.9001197]
[1754685748432,0.00721483,116730.0,116720.0,5.74669335]
[1754685748664,0.00299462,116730.0,116720.0,5.74669335]
[1754685754185,0.00027596,116730.0,116720.0,5.74669335]
[1754685761229,0.00027596,116730.0,116720.0,5.90006148]
[1754685761822,0.00027596,116730.0,116720.0,5.74669335]
[1754685765218,1e-08,116730.0,116720.0,5.91804358]
[1754685766501,1e-08,116730.0,116720.0,5.92654358]
[1754685767743,1e-08,116730.0,116720.0,6.35674358]
[1754685769864,1e-08,116730.0,116720.0,6.36524358]
[1754685776101,0.0002,116740.0,116730.0,0.52878458]
[1754685776310,0.00234209,116740.0,116730.0,2.01048379]
[1754685776511,0.00234209,116740.0,116730.0,2.01347379]
[1754685776708,0.00234209,116740.0,116730.0,2.01690379]
[1754685777488,0.00234209,116740.0,116730.0,2.01903379]
[1754685779430,0.00234209,116740.0,116730.0,2.28459379]
[1754685780266,0.0002,116750.0,116740.0,0.17132088]
[1754685780466,0.00067354,116750.0,116740.0,1.13128454]
[1754685780671,0.00067354,116750.0,116740.0,1.12914303]
[1754685780886,0.00067354,116750.0,116740.0,1.50285305]
[1754685781180,0.00067354,116750.0,116740.0,1.84285305]
[1754685781442,0.00167354,116750.0,116740.0,1.84285305]
[1754685782589,0.00267354,116750.0,116740.0,1.84285305]
[1754685782794,0.00267354,116750.0,116740.0,1.99645009]
[1754685782988,0.00267354,116750.0,116740.0,1.99944009]
[1754685783199,0.00267354,116750.0,116740.0,2.00157009]
[1754685783401,0.00439354,116750.0,116740.0,2.00157009]
[1754685784403,0.00047332,116750.0,116740.0,2.02694439]
[1754685785430,0.00047332,116750.0,116740.0,2.29250439]
[1754685787963,0.0002,116760.0,116750.0,0.1713062]
[1754685788164,0.00028108,116760.0,116750.0,1.39678967]
[1754685788402,0.00028108,116760.0,116750.0,1.39464835]
[1754685789254,0.00028108,116760.0,116750.0,1.41984835]
[1754685790548,0.00028108,116760.0,116750.0,1.42184835]
[1754685790771,0.00028108,116760.0,116750.0,1.42284835]
[1754685790996,0.00028108,116760.0,116750.0,1.42583835]
[1754685795087,0.00028108,116760.0,116750.0,0.68527831]
[1754685795292,0.00028108,116760.0,116750.0,1.42583835]
[1754685797584,0.00028108,116760.0,116750.0,0.68527831]
[1754685797791,1e-08,116770.0,116760.0,0.51129153]
[1754685798011,1e-08,116780.0,116770.0,0.66018296]
[1754685798200,1e-08,116780.0,116770.0,3.29189615]
[1754685798409,0.00019894,116800.0,116780.0,0.5112622]
[1754685798656,0.00028002,116800.0,116790.0,1.13330027]
[1754685798846,0.00028002,116800.0,116790.0,1.13115968]
[1754685799000,0.00028002,116800.0,116790.0,1.13414968]
[1754685800466,0.00028002,116800.0,116790.0,1.14301809]
[1754685801253,0.00228002,116800.0,116790.0,1.14301809]
[1754685803253,0.00228002,116800.0,116790.0,1.40881809]
[1754685805245,0.00228002,116800.0,116790.0,1.43453109]
[1754685807457,0.00228002,116800.0,116790.0,1.77453109]
[1754685809109,0.00228002,116800.0,116790.0,1.03397105]
[1754685809372,0.00228002,116800.0,116790.0,1.77453109]
[1754685810250,0.00228002,116800.0,116790.0,1.40212107]
[1754685812009,0.00228002,116800.0,116790.0,1.03184105]
[1754685812211,0.00228002,116800.0,116790.0,1.40212107]
[1754685812416,0.00228002,116800.0,116790.0,1.77240109]
[1754685813668,0.00228002,116800.0,116790.0,1.50361109]
[1754685813894,0.00228002,116800.0,116790.0,1.13333107]
[1754685814107,0.00228002,116800.0,116790.0,1.13650107]
[1754685814311,0.00228002,116800.0,116790.0,1.50678109]
[1754685814723,0.00228002,116800.0,116790.0,1.50890109]
[1754685823751,0.00228002,116800.0,116790.0,1.77470109]
[1754685824254,0.00228002,116800.0,116790.0,2.14498111]
[1754685824483,0.0002,116810.0,116800.0,0.51123287]
[1754685824712,0.0002,116810.0,116800.0,1.84450504]
[1754685825154,0.0002,116810.0,116800.0,1.86082204]
[1754685826940,0.0002,116810.0,116800.0,1.49054202]
[1754685827391,0.0002,116810.0,116800.0,0.74998198]
[1754685827560,0.0002,116810.0,116800.0,1.49054202]
[1754685828195,0.0002,116810.0,116800.0,1.59785223]
[1754685828362,0.0002,116810.0,116800.0,1.98558127]
[1754685828549,0.0163172,116820.0,116810.0,1.25177825]
[1754685828742,0.0163172,116820.0,116810.0,1.73684036]
[1754685828944,0.0163172,116820.0,116810.0,1.84732057]
[1754685829431,0.0163172,116820.0,116810.0,1.87360433]
[1754685829785,0.0163172,116820.0,116810.0,1.60780433]
[1754685829960,0.0163172,116820.0,116810.0,1.62412133]
[1754685830154,0.0173172,116820.0,116810.0,1.62412133]
[1754685830746,0.0173172,116820.0,116810.0,1.37614395]
[1754685830950,0.0173172,116820.0,116810.0,1.26883374]
[1754685831197,0.0173172,116820.0,116810.0,1.37600837]
[1754685835703,0.0173172,116820.0,116810.0,1.65925739]
[1754685836123,0.0173172,116820.0,116810.0,1.65929739]
[1754685839831,0.0173172,116820.0,116810.0,1.64200837]
[1754685848383,0.0173172,116820.0,116810.0,1.14942571]
[1754685848589,0.0173172,116820.0,116810.0,1.64200837]
[1754685849197,0.0173172,116820.0,116810.0,1.65945739]
[1754685849419,0.00024,116830.0,116820.0,1.00378622]
[1754685849638,1e-08,116830.0,116820.0,1.4173196]
[1754685849843,1e-08,116830.0,116820.0,1.4204796]
[1754685849961,1e-08,116830.0,116820.0,1.31330497]
[1754685850162,1e-08,116830.0,116820.0,5.08707897]
[1754685850375,1e-08,116830.0,116820.0,5.11278497]
[1754685850577,1e-08,116830.0,116820.0,4.96686097]
[1754685850797,1e-08,116830.0,116820.0,5.16389484]
[1754685851936,1e-08,116830.0,116820.0,5.16489484]
[1754685852168,0.0002,116840.0,116830.0,0.1711889]
[1754685852351,0.00034195,116840.0,116830.0,1.59592435]
[1754685852548,0.00034195,116840.0,116830.0,1.59694449]
[1754685852749,0.00034195,116840.0,116830.0,1.35065689]
[1754685853497,0.00034195,116840.0,116830.0,1.51038145]
[1754685854075,0.00034195,116840.0,116830.0,1.61747756]
[1754685854436,0.00034195,116840.0,116830.0,1.51038145]
[1754685855049,0.00034195,116840.0,116830.0,1.53608445]
[1754685858385,0.00034195,116840.0,116830.0,2.02847587]
[1754685858583,0.00034195,116840.0,116830.0,2.18207291]
[1754685859415,4.851e-05,116840.0,116830.0,1.68968149]
[1754685861201,4.851e-05,116840.0,116830.0,1.53608445]
[1754685862297,4.851e-05,116840.0,116830.0,2.02847587]
[1754685862499,0.1,116860.0,116850.0,0.66355102]
[1754685862680,0.1,116860.0,116850.0,0.90109119]
[1754685862843,0.1,116860.0,116850.0,0.9879533]
[1754685863258,0.1,116860.0,116850.0,1.0136553]
[1754685864305,0.1,116860.0,116850.0,1.0156453]
[1754685864502,0.1,116860.0,116850.0,1.2855853]
[1754685864709,0.1,116860.0,116850.0,1.2875853]
[1754685866585,0.1,116860.0,116850.0,1.18048513]
[1754685866783,0.1,116860.0,116850.0,1.52048513]
[1754685868358,0.1,116860.0,116850.0,1.6275853]
[1754685874917,0.1,116860.0,116850.0,0.99962388]
[1754685875110,0.1,116860.0,116850.0,1.3564953]
[1754685879390,0.1,116860.0,116850.0,1.3616253]
[1754685881848,0.1,116860.0,116850.0,1.3596353]
[1754685883444,0.0975,116860.0,116850.0,1.25253513]
[1754685884371,0.0975,116860.0,116850.0,1.25452513]
[1754685886051,0.0975,116860.0,116850.0,1.52032513]
[1754685888642,0.07866308,116860.0,116850.0,1.52032513]
[1754685889072,0.07010061,116860.0,116850.0,1.52032513]
[1754685889491,0.06153814,116860.0,116850.0,1.52032513]
[1754685889700,0.05297567,116860.0,116850.0,1.52032513]
[1754685889905,0.05297567,116860.0,116850.0,1.02793371]
[1754685890113,0.0444132,116860.0,116850.0,1.52032513]
[1754685890342,0.0444132,116860.0,116850.0,1.51732513]
[1754685890557,0.03685073,116860.0,116850.0,1.51732513]
[1754685890961,0.02828826,116860.0,116850.0,1.51732513]
[1754685891336,0.01972579,116860.0,116850.0,1.51732513]
[1754685891749,0.01116332,116860.0,116850.0,1.51732513]
[1754685892249,0.00260085,116860.0,116850.0,1.51732513]
[1754685892687,0.025,116880.0,116870.0,0.51113031]
[1754685893033,0.02547306,116880.0,116870.0,0.72823242]
[1754685893328,0.02547306,116880.0,116870.0,0.75393342]
[1754685893858,0.02547306,116880.0,116870.0,0.75693342]
[1754685894358,0.02547306,116880.0,116870.0,0.76093342]
[1754685896936,0.02547306,116880.0,116870.0,0.79558056]
[1754685898871,0.02547306,116880.0,116870.0,0.79882056]
[1754685899044,0.02547306,116880.0,116870.0,0.79558056]
[1754685900225,0.02547306,116880.0,116870.0,0.79882056]
[1754685900829,0.02547306,116880.0,116870.0,1.06462056]
[1754685904936,0.02547306,116880.0,116870.0,1.43599156]
[1754685907779,0.02277306,116880.0,116870.0,1.43599156]
[1754685908194,0.02277306,116880.0,116870.0,1.06675056]
[1754685908402,0.02277306,116880.0,116870.0,1.43599156]
[1754685908616,0.39201406,116880.0,116870.0,1.06462056]
[1754685909719,0.02277306,116880.0,116870.0,1.06675056]
[1754685909932,0.02277306,116880.0,116870.0,1.43599156]
[1754685910372,0.39201406,116880.0,116870.0,1.06675056]
[1754685912933,0.02277306,116880.0,116870.0,1.06675056]
[1754685915258,0.02277306,116880.0,116870.0,1.06679056]
[1754685915671,0.02277306,116880.0,116870.0,1.17402447]
[1754685918434,0.02277306,116880.0,116870.0,1.54326547]
[1754685918654,0.02277306,116880.0,116870.0,1.64670647]
[1754685918655,0.00047306,116880.0,116870.0,1.64670647]
[1754685919299,0.00047306,116880.0,116870.0,1.64370647]
[1754685919500,0.00047306,116880.0,116870.0,1.27446547]
[1754685920097,0.00047306,116880.0,116870.0,1.16723156]
[1754685920520,0.00147306,116880.0,116870.0,1.27445891]
[1754685921138,0.00147306,116880.0,116870.0,1.27045891]
[1754685921324,0.00147306,116880.0,116870.0,1.27245891]
[1754685921667,0.00147306,116880.0,116870.0,1.27045891]
[1754685922301,0.00147306,116880.0,116870.0,0.90121791]
[1754685922498,0.00147306,116880.0,116870.0,1.27045891]
[1754685923882,0.00147306,116880.0,116870.0,1.63969991]
[1754685924491,0.00147306,116880.0,116870.0,1.27045891]
[1754685926652,0.00147306,116880.0,116870.0,0.90121791]
[1754685926887,0.00147306,116880.0,116870.0,1.27045891]
[1754685927274,0.00147306,116880.0,116870.0,0.90121791]
[1754685927477,0.00147306,116880.0,116870.0,1.53625891]
[1754685930479,0.00147306,116880.0,116870.0,1.42903156]
[1754685931820,0.00147306,116880.0,116870.0,1.79827256]
[1754685932776,0.00147306,116880.0,116870.0,1.42903156]
[1754685934205,0.00038745,116900.0,116870.0,1.79827256]
[1754685934421,0.02282934,116900.0,116890.0,0.54034203]
[1754685934601,0.02282934,116900.0,116890.0,0.39194314]
[1754685934965,0.02282934,116900.0,116890.0,0.78984014]
[1754685935548,0.02282934,116900.0,116890.0,0.42459914]
[1754685935762,0.02282934,116900.0,116890.0,0.79384014]
[1754685937227,0.02282934,116900.0,116890.0,0.79684014]
[1754685937639,0.02282934,116900.0,116890.0,0.42759914]
[1754685937841,0.02282934,116900.0,116890.0,0.79684014]
[1754685939275,0.02282934,116900.0,116890.0,1.06264014]
[1754685939678,0.02282934,116900.0,116890.0,0.69339914]
[1754685939878,0.02282934,116900.0,116890.0,1.06264014]
[1754685940211,0.02282934,116900.0,116890.0,0.69339914]
[1754685940409,0.02282934,116900.0,116890.0,1.06264014]
[1754685941021,0.02282934,116900.0,116890.0,0.69339914]
[1754685941225,0.02282934,116900.0,116890.0,1.06264014]
[1754685943223,0.02282934,116900.0,116890.0,0.69339914]
[1754685943424,0.02282934,116900.0,116890.0,1.06264014]
[1754685943809,0.02282934,116900.0,116890.0,0.69339914]
[1754685944011,0.02282934,116900.0,116890.0,0.55645914]
[1754685944462,0.02282934,116900.0,116890.0,0.92866014]
[1754685944678,0.02282934,116900.0,116890.0,0.93076014]
[1754685945537,0.02282934,116900.0,116890.0,0.56151914]
[1754685945742,0.02282934,116900.0,116890.0,0.93076014]
[1754685946097,0.02282934,116900.0,116890.0,1.06284014]
[1754685947484,0.02282934,116900.0,116890.0,0.69359914]
[1754685947719,0.02282934,116900.0,116890.0,1.06284014]
[1754685948351,0.02282934,116900.0,116890.0,1.06074014]
[1754685948544,0.00052934,116900.0,116890.0,1.50628114]
[1754685948882,0.00052934,116900.0,116890.0,1.13704014]
[1754685949067,0.00052934,116900.0,116890.0,1.50628114]
[1754685949270,0.00052934,116900.0,116890.0,0.87489913]
[1754685949478,0.00052934,116900.0,116890.0,1.60938113]
[1754685950100,0.00052934,116900.0,116890.0,1.60638113]
[1754685950525,0.00152934,116900.0,116890.0,1.49928114]
[1754685950692,0.00152934,116900.0,116890.0,1.25276309]
[1754685951908,0.0225,116920.0,116910.0,0.17107176]
[1754685952111,0.0225,116920.0,116910.0,0.79515571]
[1754685952359,0.0225,116920.0,116910.0,0.79824571]
[1754685953273,0.0225,116920.0,116910.0,0.91280982]
[1754685953483,0.0225,116920.0,116910.0,0.91880982]
[1754685956060,0.0225,116920.0,116910.0,0.42684587]
[1754685956262,0.0225,116920.0,116910.0,0.91880982]
[1754685962800,0.0225,116920.0,116910.0,1.18460982]
[1754685963519,0.0225,116920.0,116910.0,0.69272587]
[1754685963857,0.0225,116920.0,116910.0,1.18468982]
[1754685964901,0.0225,116920.0,116910.0,0.69272587]
[1754685965322,0.0225,116920.0,116910.0,1.18468982]
[1754685965530,0.0225,116920.0,116910.0,0.69272587]
[1754685965704,0.0225,116920.0,116910.0,1.18468982]
[1754685965911,0.0225,116920.0,116910.0,1.05248982]
[1754685966108,0.0225,116920.0,116910.0,1.18480982]
[1754685969325,0.0225,116920.0,116910.0,1.18568982]
[1754685970151,0.0002,116920.0,116910.0,1.25988982]
[1754685970446,0.0002,116920.0,116910.0,1.25984982]
[1754685972522,0.0002,116920.0,116910.0,1.12668982]
[1754685972731,0.0002,116920.0,116910.0,1.50563599]
[1754685974068,0.0002,116920.0,116910.0,0.76784587]
[1754685974262,0.0002,116920.0,116910.0,1.50563599]
[1754685974466,0.0002,116920.0,116910.0,1.37251599]
[1754685974676,0.0002,116920.0,116910.0,1.77139599]
[1754685976082,0.0002,116920.0,116910.0,1.8784553]
[1754685976293,0.0002,116920.0,116910.0,1.8744553]
[1754685977046,0.0002,116920.0,116910.0,1.8724553]
[1754685977252,0.0002,116920.0,116910.0,1.8734553]
[1754685978453,0.0402765,116940.0,116930.0,0.1710425]
[1754685978661,0.04041831,116940.0,116930.0,0.62880967]
[1754685978908,0.04041831,116940.0,116930.0,0.76477967]
[1754685979119,0.04041831,116940.0,116930.0,0.79046767]
[1754685979319,0.04041831,116940.0,116930.0,0.79901809]
[1754685979726,0.04041831,116940.0,116930.0,0.43412303]
[1754685979928,0.04041831,116940.0,116930.0,0.80301809]
[1754685981689,0.04041831,116940.0,116930.0,0.83035116]
[1754685984660,0.04041831,116940.0,116930.0,0.69747116]
[1754685984859,0.04041831,116940.0,116930.0,0.3285761]
[1754685985019,0.04041831,116940.0,116930.0,0.69747116]
[1754685985622,0.04041831,116940.0,116930.0,0.3285761]
[1754685985831,0.04041831,116940.0,116930.0,0.69747116]
[1754685988910,0.04041831,116940.0,116930.0,0.76694878]
[1754685989447,0.04041831,116940.0,116930.0,1.03274878]
[1754685992964,0.04041831,116940.0,116930.0,0.66385372]
[1754685993381,0.04041831,116940.0,116930.0,1.03274878]
[1754685994413,0.04041831,116940.0,116930.0,0.66385372]
[1754685994613,0.04041831,116940.0,116930.0,1.03274878]
[1754685994818,0.04041831,116940.0,116930.0,1.16542878]
[1754685997456,0.04041831,116940.0,116930.0,0.7270561]
[1754685997636,0.04041831,116940.0,116930.0,1.09595116]
[1754685998734,0.04041831,116940.0,116930.0,0.96327116]
[1754685999346,0.04041831,116940.0,116930.0,0.5943761]
[1754685999552,0.04041831,116940.0,116930.0,0.96327116]
[1754686000277,0.01811831,116940.0,116930.0,1.87464384]
[1754686000475,0.01811831,116940.0,116930.0,0.8015761]
[1754686000732,0.01811831,116940.0,116930.0,1.53936622]
[1754686001342,0.01811831,116940.0,116930.0,1.53736622]
[1754686002292,0.01811831,116940.0,116930.0,1.53336622]
[1754686002728,0.01811831,116940.0,116930.0,1.53436622]
[1754686003751,0.01811831,116940.0,116930.0,1.64142553]
[1754686004188,0.01811831,116940.0,116930.0,1.90722553]
[1754686004398,0.01811831,116940.0,116930.0,1.80016622]
[1754686004817,0.01811831,116940.0,116930.0,1.90722553]
[1754686005228,0.01811831,116940.0,116930.0,1.53833047]
[1754686005434,0.01811831,116940.0,116930.0,1.90722553]
[1754686008467,0.00906151,116940.0,116930.0,2.27612059]
[1754686008652,0.00906151,116940.0,116930.0,1.90722553]
[1754686009002,0.00050471,116940.0,116930.0,1.90722553]
[1754686009434,4e-05,116950.0,116940.0,1.24881799]
[1754686009640,4e-05,116950.0,116940.0,1.57761611]
[1754686009844,4e-05,116950.0,116940.0,1.58057611]
[1754686010427,4e-05,116950.0,116940.0,0.84278599]
[1754686010628,4e-05,116950.0,116940.0,1.58057611]
[1754686010830,0.0223,116960.0,116950.0,1.24880337]
[1754686011035,0.0223,116960.0,116950.0,1.47358548]
[1754686011695,0.0223,116960.0,116950.0,1.49926748]
[1754686012306,0.0223,116960.0,116950.0,1.50326748]
[1754686012508,0.0223,116960.0,116950.0,1.50526748]
[1754686014918,0.0223,116960.0,116950.0,1.13637242]
[1754686017025,0.0223,116960.0,116950.0,1.50526748]
[1754686017163,0.02207344,116960.0,116950.0,1.50526748]
[1754686020986,0.02207344,116960.0,116950.0,1.13637242]
[1754686021779,0.02207344,116960.0,116950.0,1.50526748]
[1754686021988,0.02207344,116960.0,116950.0,1.77106748]
[1754686025674,0.02207344,116960.0,116950.0,1.03327736]
[1754686025878,0.02207344,116960.0,116950.0,1.40217242]
[1754686029204,0.02207344,116960.0,116950.0,1.03291736]
[1754686029409,0.02207344,116960.0,116950.0,1.40181242]
[1754686031233,0.02207344,116960.0,116950.0,1.03291736]
[1754686031436,0.02207344,116960.0,116950.0,1.40181242]
[1754686032236,0.02207344,116960.0,116950.0,1.03291736]
[1754686032445,0.02207344,116960.0,116950.0,1.40181242]
[1754686032764,0.02207344,116960.0,116950.0,1.77070748]
[1754686034190,0.02207344,116960.0,116950.0,1.40181242]
[1754686034400,0.02207344,116960.0,116950.0,1.03291736]
[1754686034959,0.02207344,116960.0,116950.0,1.40181242]
[1754686035714,0.02207344,116960.0,116950.0,1.76470748]
[1754686036094,0.02207344,116960.0,116950.0,1.76570748]
[1754686036844,0.02207344,116960.0,116950.0,1.87260349]
[1754686038053,0.02207344,116960.0,116950.0,1.50370843]
[1754686038472,0.02207344,116970.0,116950.0,1.88115415]
[1754686038680,0.02235431,116980.0,116970.0,0.17098401]
[1754686038817,0.02235431,116980.0,116970.0,0.67447907]
[1754686039025,0.02235431,116980.0,116970.0,0.70015907]
[1754686039240,0.02235431,116980.0,116970.0,0.70326907]
[1754686039650,0.02235431,116980.0,116970.0,0.33437401]
[1754686039982,0.02235431,116980.0,116970.0,0.70326907]
[1754686040340,0.02235431,116980.0,116970.0,0.79213118]
[1754686041628,0.02235431,116980.0,116970.0,0.79613118]
[1754686043748,0.02235431,116980.0,116970.0,1.16502624]
[1754686044125,0.02235431,116980.0,116970.0,0.79613118]
[1754686044773,0.02235431,116980.0,116970.0,0.79213118]
[1754686045134,0.02235431,116980.0,116970.0,0.79113118]
[1754686047554,0.02235431,116980.0,116970.0,0.42223612]
[1754686047814,0.02235431,116980.0,116970.0,0.79113118]
[1754686048186,0.02235431,116980.0,116970.0,1.50002624]
[1754686048387,0.02235431,116980.0,116970.0,1.60692225]
[1754686048637,0.02235431,116980.0,116970.0,1.87272225]
[1754686048813,0.02235431,116980.0,116970.0,1.76582624]
[1754686049022,0.02235431,116980.0,116970.0,1.39693118]
[1754686049249,0.02235431,116980.0,116970.0,1.50382719]
[1754686049430,0.02235431,116980.0,116970.0,1.87272225]
[1754686050220,0.00028087,116980.0,116970.0,1.87272225]
[1754686050406,0.02235431,116980.0,116970.0,1.87272225]
[1754686050839,0.02235431,116980.0,116970.0,1.76582624]
[1754686051434,0.02235431,116980.0,116970.0,1.39693118]
[1754686053414,0.02235431,116980.0,116970.0,1.02803612]
[1754686053808,0.02235431,116980.0,116970.0,1.39693118]
[1754686054006,0.02235431,116980.0,116970.0,1.39162118]
[1754686054214,0.56221876,116980.0,116970.0,0.63248]
[1754686054425,0.56221876,116980.0,116970.0,0.02668]
[1754686054426,0.76797977,116980.0,116970.0,0.02668]
[1754686054657,0.69461876,116980.0,116970.0,0.02668]
[1754686055298,0.69221876,116980.0,116970.0,0.02668]
[1754686055773,0.3233237,116980.0,116970.0,0.02668]
[1754686056983,0.3233237,116980.0,116970.0,0.19766401]
[1754686057159,0.01995431,116980.0,116970.0,0.68922938]
[1754686057361,0.01995431,116980.0,116970.0,0.69444938]
[1754686059201,0.01995431,116980.0,116970.0,0.20288401]
[1754686059431,0.01995431,116980.0,116970.0,0.69444938]
[1754686060078,0.01995431,116980.0,116970.0,0.20288401]
[1754686060260,0.01995431,116980.0,116970.0,0.69444938]
[1754686060641,0.01995431,116980.0,116970.0,0.20288401]
[1754686060857,0.01995431,116980.0,116970.0,0.69444938]
[1754686062945,0.1909237,116980.0,116970.0,0.02668]
[1754686065595,0.1909237,116980.0,116970.0,0.20085401]
[1754686066435,0.1909237,116980.0,116970.0,0.20288401]
[1754686066864,0.1909237,116980.0,116970.0,0.69444938]
[1754686067461,0.1909237,116980.0,116970.0,0.20288401]
[1754686068263,0.01995431,116980.0,116970.0,0.20288401]
[1754686068482,0.15231431,116980.0,116970.0,0.69444938]
[1754686069507,0.01995431,116980.0,116970.0,0.69444938]
[1754686072466,0.01995431,116980.0,116970.0,0.82676938]
[1754686073330,0.01995431,116980.0,116970.0,0.69444938]
[1754686076586,0.01995431,116980.0,116970.0,0.20288401]
[1754686076771,0.01995431,116980.0,116970.0,0.69444938]
[1754686079608,0.1525503,116990.0,116980.0,0.17096939]
[1754686079782,0.1525503,116990.0,116980.0,0.66468476]
[1754686080001,0.1525503,116990.0,116980.0,0.66787476]
[1754686080162,0.1525503,116990.0,116980.0,0.69355176]
[1754686080797,0.1525503,116990.0,116980.0,0.69955176]
[1754686082440,0.1525503,116990.0,116980.0,0.20798639]
[1754686082658,0.1525503,116990.0,116980.0,0.69955176]
[1754686088340,0.1525503,116990.0,116980.0,0.20798639]
[1754686088518,0.1525503,116990.0,116980.0,0.69955176]
[1754686089171,0.1525503,116990.0,116980.0,1.32785149]
[1754686089172,0.0203903,116990.0,116980.0,1.32785149]
[1754686090005,0.0203903,116990.0,116980.0,1.32585149]
[1754686090248,0.0203903,116990.0,116980.0,1.32185149]
[1754686090451,0.0203903,116990.0,116980.0,1.32285149]
[1754686090854,0.0153903,116990.0,116980.0,1.32285149]
[1754686091275,0.01616296,117000.0,116990.0,0.51095478]
[1754686091477,0.01616296,117000.0,116990.0,1.22357226]
[1754686091630,0.01616296,117000.0,116990.0,1.22676226]
[1754686091832,0.01616296,117000.0,116990.0,1.25243626]
[1754686092040,0.01616296,117000.0,116990.0,1.27865394]
[1754686092621,0.01616296,117000.0,116990.0,1.27965394]
[1754686095672,0.01616296,117000.0,116990.0,1.14761394]
[1754686097619,0.01616296,117000.0,116990.0,0.39823168]
[1754686097820,0.8105885,117000.0,116990.0,0.05289168]
[1754686098043,0.89738275,117000.0,116990.0,0.05289168]
[1754686098246,0.92091275,117000.0,116990.0,0.02721768]
[1754686098445,1.42992714,117000.0,116990.0,0.001]
[1754686098663,0.93836177,117000.0,116990.0,0.001]
[1754686098872,0.17096742,116990.0,116970.0,0.17953289]
[1754686099068,0.13196,116980.0,116970.0,0.17953289]
[1754686099245,0.31831969,116980.0,116970.0,0.17953289]
[1754686099447,0.1473503,116980.0,116970.0,0.20521289]
[1754686100451,0.1473503,116980.0,116970.0,0.20621289]
[1754686102117,0.1473503,116980.0,116970.0,0.20914289]
[1754686102708,0.1473503,116980.0,116970.0,0.20621289]
[1754686103282,0.31831969,116980.0,116970.0,0.20621289]
[1754686106283,0.31831969,116980.0,116970.0,0.02668]
[1754686106532,0.80988506,116980.0,116970.0,0.02668]
[1754686107170,0.31831969,116980.0,116970.0,0.02668]